bitfinex/quotes_SOLUSD_20240620
["timestamp","ask_amount","ask_price","bid_price","bid_amount"]
[1718891197324,7.3244,136.53,136.48,29.3704]
[1718891197506,7.3244,136.53,136.49,7.3264]
[1718891197906,83.3066,136.57,136.48,29.3705]
[1718891197907,7.3249,136.52,136.48,29.3705]
[1718891198095,7.3249,136.52,136.48,22.0436]
[1718891198508,7.3246,136.53,136.48,29.3706]
[1718891199126,7.3241,136.54,136.49,7.3264]
[1718891199426,7.324,136.54,136.49,7.3264]
[1718891199625,7.3245,136.53,136.48,22.0436]
[1718891200395,7.3245,136.53,136.48,29.3705]
[1718891201528,7.3249,136.52,136.48,29.3705]
[1718891201896,7.3249,136.52,136.48,22.0436]
[1718891202496,7.3249,136.52,136.48,29.3705]
[1718891203020,7.3246,136.53,136.48,29.3705]
[1718891203200,18.3081,136.56,136.49,7.3263]
[1718891203410,50.1443,136.58,136.51,7.3253]
[1718891203723,7.3237,136.55,136.5,7.3259]
[1718891204203,7.3229,136.56,136.51,7.3253]
[1718891204405,27.3224,136.57,136.52,7.3249]
[1718891205099,24.26587903,136.62,136.53,21.4924]
[1718891205304,7.3214,136.59,136.54,7.3234]
[1718891205622,7.3208,136.6,136.55,7.3231]
[1718891205815,7.3213,136.59,136.55,7.3231]
[1718891206023,7.3213,136.59,136.54,7.3236]
[1718891207705,7.3213,136.59,136.55,7.3232]
[1718891208123,20.3940416,136.64,136.54,18.3096]
[1718891208124,38.6903416,136.64,136.54,18.3096]
[1718891208301,20.0,136.63,136.54,18.3096]
[1718891208623,38.2989,136.63,136.55,7.3231]
[1718891208826,7.3212,136.59,136.55,7.3231]
[1718891209329,7.3208,136.6,136.55,7.3231]
[1718891209513,7.3208,136.6,136.53,21.4924]
[1718891209514,7.3208,136.6,136.56,7.3226]
[1718891209827,7.3208,136.6,136.55,7.323]
[1718891210708,7.3215,136.59,136.54,7.3235]
[1718891211014,7.3218,136.58,136.54,7.3235]
[1718891211202,7.3226,136.57,136.53,21.4924]
[1718891211409,52.3224,136.57,136.53,28.8167]
[1718891212403,45.0,136.57,136.53,28.8165]
[1718891213816,7.3217,136.58,136.53,28.8165]
[1718891214019,45.0,136.57,136.53,28.8165]
[1718891215117,7.3212,136.59,136.54,7.3238]
[1718891215330,38.2978,136.63,136.55,7.323]
[1718891215626,7.3208,136.6,136.55,7.323]
[1718891216029,7.3209,136.6,136.55,7.3231]
[1718891216613,7.3209,136.6,136.56,7.3226]
[1718891217009,7.3222,136.57,136.5,6.2123]
[1718891217216,31.84,136.61,136.52,7.3248]
[1718891217420,7.3226,136.57,136.52,7.3248]
[1718891218319,7.3228,136.56,136.52,7.3248]
[1718891218629,7.3225,136.57,136.5,6.2123]
[1718891218831,7.3227,136.56,136.52,7.3245]
[1718891219249,7.3227,136.56,136.51,7.3252]
[1718891219919,7.3227,136.56,136.52,7.3248]
[1718891220120,7.3224,136.57,136.52,7.3248]
[1718891220315,18.3037,136.59,136.51,7.3254]
[1718891220532,18.3037,136.59,136.5,6.2123]
[1718891220533,7.3228,136.56,136.52,7.3248]
[1718891220832,7.3228,136.56,136.5,6.2123]
[1718891221039,7.3228,136.56,136.51,7.3252]
[1718891221532,7.3242,136.54,136.5,13.5381]
[1718891221944,7.3235,136.55,136.51,7.3254]
[1718891222237,7.3228,136.56,136.51,7.3254]
[1718891222437,63.3055,136.58,136.51,7.3254]
[1718891222438,7.3233,136.55,136.51,7.3254]
[1718891223329,7.3233,136.55,136.5,13.538]
[1718891223823,7.3233,136.55,136.49,15.1795]
[1718891223824,18.3083,136.55,136.49,15.1795]
[1718891224035,65.0,136.54,136.47,6.2547]
[1718891224229,7.3262,136.5,136.47,6.2547]
[1718891224557,7.3242,136.54,136.47,6.2547]
[1718891224834,91.5018,136.58,136.47,6.2547]
[1718891224835,18.3057,136.57,136.47,6.2547]
[1718891225214,46.5018,136.58,136.47,6.2547]
[1718891225437,20.0,136.57,136.47,6.2547]
[1718891225854,31.84,136.54,136.44,6.1462]
[1718891226029,31.84,136.54,136.43,16.223]
[1718891226030,7.3285,136.46,136.43,16.223]
[1718891226344,7.3277,136.47,136.43,23.5525]
[1718891226516,7.3271,136.48,136.43,23.5525]
[1718891226721,65.0,136.53,136.43,16.223]
[1718891226936,18.3134,136.52,136.43,16.223]
[1718891227239,7.327,136.49,136.43,16.223]
[1718891227432,18.3149,136.51,136.43,23.5526]
[1718891227731,7.3277,136.47,136.43,23.5526]
[1718891227931,7.3267,136.49,136.43,16.223]
[1718891228156,20.0,136.53,136.46,7.328]
[1718891228157,18.3111,136.53,136.46,7.328]
[1718891228439,7.3262,136.5,136.45,7.3284]
[1718891228635,7.3265,136.49,136.45,7.3284]
[1718891229023,7.3274,136.48,136.43,23.5526]
[1718891229233,7.3271,136.48,136.43,23.5525]
[1718891229423,31.84,136.54,136.43,16.223]
[1718891229424,7.3282,136.46,136.43,16.223]
[1718891230139,18.3162,136.5,136.43,23.5524]
[1718891230344,7.3274,136.48,136.43,23.5524]
[1718891230515,18.3126,136.52,136.43,16.223]
[1718891230717,7.3258,136.51,136.46,7.3281]
[1718891230943,7.3268,136.49,136.43,16.223]
[1718891231150,5.81691769,136.54,136.43,16.223]
[1718891231335,7.3267,136.49,136.44,7.3291]
[1718891231652,20.0,136.53,136.43,34.5471]
[1718891231826,7.3251,136.52,136.47,7.3271]
[1718891232027,7.3251,136.52,136.47,6.0002]
[1718891232226,24.1818713,136.56,136.48,7.3267]
[1718891232428,7.3252,136.52,136.47,13.3276]
[1718891232633,7.3246,136.53,136.48,7.3269]
[1718891232923,7.3251,136.52,136.47,13.3276]
[1718891233124,18.3101,136.54,136.47,6.0002]
[1718891233347,7.3257,136.51,136.47,6.0002]
[1718891234039,7.324,136.54,136.47,6.0002]
[1718891234347,7.3245,136.53,136.49,7.3261]
[1718891234650,37.58386004,136.57,136.48,15.3284]
[1718891234651,7.3234,136.55,136.48,15.3284]
[1718891234830,7.3234,136.55,136.5,7.3257]
[1718891235031,7.3234,136.55,136.51,7.3254]
[1718891235353,7.3234,136.55,136.5,7.3258]
[1718891235647,7.3235,136.55,136.5,7.3258]
[1718891236048,7.3238,136.54,136.5,7.3258]
[1718891236263,7.3235,136.55,136.5,7.3258]
[1718891236451,50.1416,136.6,136.48,37.3884]
[1718891236753,50.1416,136.6,136.53,6.4392]
[1718891236754,7.3226,136.57,136.53,6.4392]
[1718891237641,18.3016,136.6,136.53,6.4392]
[1718891237642,36.6045,136.6,136.53,6.4392]
[1718891237842,36.6045,136.6,136.48,15.3284]
[1718891237843,7.3246,136.53,136.5,6.2605]
[1718891238929,18.3092,136.55,136.48,15.3284]
[1718891239465,18.3092,136.55,136.47,13.5879]
[1718891239466,18.3111,136.53,136.47,6.2605]
[1718891239747,7.3266,136.49,136.47,6.2605]
[1718891240324,7.3262,136.5,136.47,6.2605]
[1718891241454,7.3252,136.52,136.47,13.588]
[1718891241656,18.3111,136.53,136.47,6.2605]
[1718891241830,7.3262,136.5,136.47,6.2605]
[1718891242164,18.3085,136.55,136.47,6.2605]
[1718891242336,65.0,136.54,136.47,6.2605]
[1718891242531,7.3246,136.53,136.48,7.3268]
[1718891242738,7.3251,136.52,136.48,7.3268]
[1718891243041,7.3254,136.51,136.47,13.5878]
[1718891243233,7.3253,136.52,136.47,13.5878]
[1718891243436,7.3242,136.54,136.49,7.3262]
[1718891243937,5.79236842,136.56,136.45,23.1203]
[1718891244140,68.4535,136.57,136.45,23.1203]
[1718891244344,7.3268,136.49,136.45,15.7917]
[1718891244555,18.312,136.53,136.45,23.1203]
[1718891244948,7.3262,136.5,136.45,23.1203]
[1718891245257,7.3268,136.49,136.45,15.7917]
[1718891245468,7.3273,136.48,136.45,15.7917]
[1718891245969,7.3272,136.48,136.45,15.7917]
[1718891247168,7.3267,136.49,136.45,15.7917]
[1718891248342,7.3272,136.48,136.45,15.7917]
[1718891248757,7.3268,136.49,136.45,15.7917]
[1718891249062,18.3125,136.52,136.46,7.3279]
[1718891249359,18.3125,136.52,136.45,23.1203]
[1718891249568,7.3281,136.46,136.45,15.7917]
[1718891249741,73.3418,136.54,136.44,6.075]
[1718891249742,7.3286,136.45,136.44,6.075]
[1718891249940,7.3294,136.44,136.42,16.1712]
[1718891250472,7.3297,136.43,136.38,23.5034]
[1718891250843,18.3201,136.47,136.37,6.5844]
[1718891250844,31.84,136.47,136.37,6.5844]
[1718891251047,65.0,136.46,136.37,6.5844]
[1718891251257,7.3307,136.42,136.37,6.5844]
[1718891251455,65.0,136.46,136.37,6.5844]
[1718891251659,65.0,136.46,136.38,7.3322]
[1718891252377,7.3294,136.44,136.39,7.3319]
[1718891252573,45.0,136.46,136.37,6.5844]
[1718891252746,7.3306,136.42,136.37,13.9171]
[1718891253074,18.3244,136.43,136.37,6.5844]
[1718891253244,7.3316,136.4,136.37,6.5844]
[1718891253757,7.3309,136.41,136.37,13.9173]
[1718891254477,7.3309,136.41,136.37,6.5844]
[1718891254765,18.3214,136.46,136.38,7.3322]
[1718891254973,7.3288,136.45,136.4,7.3313]
[1718891255343,7.3292,136.44,136.4,7.3313]
[1718891255552,18.3202,136.47,136.39,7.3317]
[1718891255767,7.3294,136.44,136.4,7.3311]
[1718891256151,7.3294,136.44,136.39,7.3316]
[1718891256356,7.3299,136.43,136.38,7.3321]
[1718891256564,7.3304,136.42,136.38,7.3321]
[1718891256762,7.33,136.43,136.38,7.3321]
[1718891256975,7.33,136.43,136.39,7.3317]
[1718891257148,42.76380647,136.48,136.37,6.5844]
[1718891257149,7.3292,136.45,136.4,7.3311]
[1718891257650,7.3293,136.44,136.4,7.3311]
[1718891258371,7.3293,136.44,136.39,7.3316]
[1718891258573,7.3294,136.44,136.4,22.8411]
[1718891258784,7.3284,136.46,136.41,7.3305]
[1718891258948,7.3278,136.47,136.42,7.3302]
[1718891259277,31.84,136.5,136.4,15.5098]
[1718891259278,7.3272,136.48,136.43,6.1452]
[1718891259452,7.3268,136.49,136.44,7.3292]
[1718891259652,7.3271,136.48,136.44,7.3292]
[1718891260852,7.3279,136.47,136.43,6.1452]
[1718891261564,50.1562,136.5,136.43,6.1452]
[1718891261777,7.3266,136.49,136.44,7.3289]
[1718891261953,7.3289,136.45,136.4,7.3311]
[1718891262272,7.3295,136.44,136.39,7.3318]
[1718891262449,7.3295,136.44,136.37,21.4953]
[1718891262771,7.3295,136.44,136.39,7.3314]
[1718891262987,18.3163,136.49,136.41,7.3304]
[1718891263268,7.3289,136.45,136.4,7.3309]
[1718891263789,7.3294,136.44,136.4,7.3309]
[1718891265384,7.3294,136.44,136.39,7.3316]
[1718891265553,7.3297,136.43,136.39,7.3316]
[1718891265755,7.3304,136.42,136.38,7.3323]
[1718891265958,18.3217,136.45,136.37,28.828]
[1718891266178,7.3314,136.4,136.37,21.4953]
[1718891267249,7.331,136.41,136.37,21.4953]
[1718891268672,7.3306,136.42,136.37,28.8277]
[1718891268975,31.84,136.45,136.37,21.4953]
[1718891269174,7.3295,136.44,136.39,7.3318]
[1718891269377,7.3298,136.43,136.39,7.3318]
[1718891269875,7.3294,136.44,136.39,7.3318]
[1718891270079,7.3294,136.44,136.4,7.3312]
[1718891270571,7.3298,136.43,136.39,7.3318]
[1718891270777,7.3298,136.43,136.38,7.3321]
[1718891271270,7.3298,136.43,136.39,7.3318]
[1718891271576,5.88071471,136.49,136.37,28.828]
[1718891271813,7.3311,136.41,136.37,21.4953]
[1718891272155,7.3305,136.42,136.37,28.8282]
[1718891272489,18.3227,136.45,136.37,28.8282]
[1718891272654,7.3307,136.42,136.37,28.8282]
[1718891273258,7.3303,136.42,136.38,7.3322]
[1718891273475,7.3316,136.4,136.37,21.4953]
[1718891276287,7.3307,136.42,136.38,7.3323]
[1718891277093,7.3307,136.42,136.37,28.8281]
[1718891277471,34.4907,136.42,136.37,28.8281]
[1718891277871,7.3311,136.41,136.37,21.4953]
[1718891278090,7.3314,136.4,136.37,21.4953]
[1718891279317,7.3309,136.41,136.37,28.8281]
[1718891279594,27.16,136.42,136.37,21.4953]
[1718891280193,7.3315,136.4,136.37,21.4953]
[1718891280491,18.3219,136.45,136.37,21.4953]
[1718891280686,5.96404206,136.46,136.37,21.4953]
[1718891280687,7.3318,136.4,136.37,21.4953]
[1718891280885,45.4855,136.43,136.37,21.4953]
[1718891280886,7.3324,136.38,136.37,21.4953]
[1718891281184,27.16,136.4,136.34,30.5824]
[1718891281389,27.16,136.4,136.35,7.3339]
[1718891281579,7.3324,136.39,136.35,7.3337]
[1718891281788,27.16,136.42,136.37,7.3327]
[1718891282093,27.3311,136.41,136.37,7.3327]
[1718891282403,27.331,136.41,136.36,7.3333]
[1718891282694,27.331,136.41,136.37,7.3329]
[1718891282885,7.3315,136.4,136.36,7.3333]
[1718891283093,7.3319,136.39,136.35,7.3338]
[1718891284579,7.3319,136.39,136.34,23.2482]
[1718891284580,20.0,136.41,136.34,30.5826]
[1718891284785,7.3332,136.37,136.34,23.2482]
[1718891285098,7.3326,136.38,136.34,30.5827]
[1718891285506,34.4921,136.39,136.34,30.5827]
[1718891286006,7.3325,136.38,136.34,30.5827]
[1718891286308,45.4903,136.39,136.34,23.2482]
[1718891286494,7.334,136.35,136.34,23.2482]
[1718891286833,7.334,136.35,136.28,21.8615]
[1718891286834,65.0,136.35,136.28,21.8615]
[1718891287006,27.16,136.33,136.28,21.8615]
[1718891287205,18.3393,136.32,136.24,21.8615]
[1718891287399,7.3377,136.29,136.24,29.2013]
[1718891287702,34.4969,136.3,136.25,7.3393]
[1718891287910,7.3374,136.29,136.24,29.2011]
[1718891288485,27.16,136.3,136.25,7.3393]
[1718891288701,20.58416243,136.39,136.25,22.06]
[1718891288886,7.3338,136.36,136.31,7.3358]
[1718891289092,7.3338,136.36,136.32,7.3356]
[1718891289393,7.3338,136.36,136.29,40.403]
[1718891289394,7.3336,136.36,136.29,40.403]
[1718891289596,7.3331,136.37,136.32,7.3355]
[1718891289796,7.3335,136.36,136.31,7.336]
[1718891290592,20.0,136.38,136.28,15.6427]
[1718891290795,20.0,136.39,136.28,15.6427]
[1718891290994,7.3354,136.33,136.28,22.9804]
[1718891291414,7.3347,136.34,136.29,7.3372]
[1718891291598,7.3337,136.36,136.31,7.336]
[1718891292083,7.3346,136.34,136.31,6.3365]
[1718891292285,7.3342,136.35,136.31,6.3365]
[1718891292588,7.3346,136.34,136.31,6.3365]
[1718891292920,7.3353,136.33,136.31,6.3365]
[1718891293101,18.3339,136.36,136.31,6.3365]
[1718891293102,7.3356,136.32,136.31,6.3365]
[1718891293794,7.3356,136.32,136.28,29.0784]
[1718891294302,7.3353,136.33,136.29,7.3372]
[1718891294508,7.3359,136.32,136.28,21.7407]
[1718891294684,76.71,136.38,136.28,21.7407]
[1718891294685,7.3362,136.31,136.28,21.7407]
[1718891295305,7.3357,136.32,136.28,29.0784]
[1718891296294,7.3357,136.32,136.28,21.7407]
[1718891296498,7.3372,136.29,136.28,21.7407]
[1718891296814,18.3395,136.32,136.25,29.246]
[1718891296815,7.3369,136.3,136.25,29.246]
[1718891297003,7.3369,136.3,136.26,7.3388]
[1718891297314,7.3369,136.3,136.25,29.2459]
[1718891297896,18.3395,136.32,136.25,21.9067]
[1718891298199,14.6618,136.3,136.17,22.5465]
[1718891298395,18.348,136.26,136.17,22.5465]
[1718891298602,7.3405,136.24,136.19,7.3423]
[1718891299616,7.3406,136.23,136.19,7.3423]
[1718891299817,7.3411,136.22,136.17,22.5465]
[1718891299994,18.3506,136.24,136.17,29.8902]
[1718891300198,7.3416,136.21,136.17,22.5465]
[1718891300713,7.3418,136.21,136.17,22.5465]
[1718891301092,7.3421,136.2,136.17,22.5465]
[1718891301298,18.3543,136.21,136.12,7.3459]
[1718891301499,7.3441,136.17,136.12,7.3463]
[1718891301843,7.3441,136.17,136.12,7.3464]
[1718891301844,7.3439,136.17,136.12,7.3464]
[1718891302303,7.3433,136.18,136.13,7.3458]
[1718891302502,18.3552,136.21,136.13,7.3455]
[1718891302707,7.3429,136.19,136.13,7.3455]
[1718891302901,7.3435,136.18,136.13,7.3455]
[1718891303608,36.7031,136.23,136.1,22.4042]
[1718891303609,18.3511,136.24,136.1,44.4642]
[1718891303917,7.3423,136.2,136.15,7.3447]
[1718891304114,7.3427,136.19,136.14,7.3451]
[1718891304704,7.3433,136.18,136.13,7.3457]
[1718891304904,7.3433,136.18,136.11,20.0]
[1718891305105,18.3539,136.22,136.12,18.3659]
[1718891305310,7.3422,136.2,136.12,40.4259]
[1718891305604,7.3422,136.2,136.15,7.3444]
[1718891305999,7.3422,136.2,136.12,40.4259]
[1718891306000,18.3566,136.2,136.1,22.4042]
[1718891306322,18.358,136.18,136.1,29.7516]
[1718891306815,7.3449,136.15,136.1,29.7516]
[1718891307016,18.358,136.18,136.1,29.7516]
[1718891307017,7.3454,136.14,136.1,22.4042]
[1718891307532,20.0,136.19,136.1,22.4042]
[1718891307533,7.346,136.13,136.1,22.4042]
[1718891308602,7.3456,136.14,136.1,22.4042]
[1718891309013,7.3456,136.14,136.1,29.7517]
[1718891309209,7.3461,136.13,136.1,22.4042]
[1718891309435,18.3608,136.16,136.1,6.277]
[1718891309735,7.3467,136.12,136.07,29.9485]
[1718891309912,7.3471,136.11,136.07,22.5996]
[1718891310914,63.3631,136.15,136.07,22.5996]
[1718891310915,7.3475,136.1,136.07,22.5996]
[1718891311104,7.3473,136.11,136.07,22.5996]
[1718891311411,7.3466,136.12,136.07,29.9487]
[1718891311612,7.3452,136.15,136.1,7.347]
[1718891311816,7.3462,136.13,136.09,7.348]
[1718891312014,7.3462,136.13,136.08,7.3483]
[1718891312407,18.3631,136.15,136.08,7.3483]
[1718891312608,18.3595,136.17,136.1,7.3474]
[1718891312806,20.0,136.16,136.11,7.3467]
[1718891313013,20.0,136.16,136.07,44.6596]
[1718891313014,20.0,136.19,136.12,7.3463]
[1718891313220,7.344,136.17,136.12,7.3462]
[1718891313415,20.0,136.19,136.07,63.0324]
[1718891313618,7.3456,136.14,136.09,7.3477]
[1718891313830,7.3456,136.14,136.08,45.0]
[1718891314137,7.345,136.15,136.1,7.3472]
[1718891314831,7.3438,136.17,136.13,7.3456]
[1718891315324,7.3438,136.17,136.12,7.3461]
[1718891316423,7.3438,136.17,136.13,7.3458]
[1718891316810,7.3428,136.19,136.14,7.3452]
[1718891317015,7.3428,136.19,136.14,13.4947]
[1718891317505,27.3423,136.2,136.15,7.3447]
[1718891317826,7.3423,136.2,136.15,7.3447]
[1718891318012,7.3426,136.19,136.14,29.1955]
[1718891318213,7.3426,136.19,136.14,21.8504]
[1718891318514,7.3418,136.21,136.17,7.3437]
[1718891318715,7.3405,136.23,136.19,7.3423]
[1718891318916,7.3402,136.24,136.2,7.342]
[1718891319120,7.3396,136.25,136.17,22.06]
[1718891319304,7.3396,136.25,136.2,7.3417]
[1718891319515,18.3447,136.28,136.18,67.06]
[1718891319516,18.3447,136.28,136.21,13.8461]
[1718891319713,268.0618,136.32,136.21,13.8461]
[1718891319714,18.3421,136.3,136.21,6.5046]
[1718891319908,5.97310897,136.34,136.22,38.1428]
[1718891320124,7.3375,136.29,136.23,67.06]
[1718891320324,7.3368,136.3,136.25,7.3394]
[1718891320624,7.3373,136.29,136.24,7.3397]
[1718891321841,7.3383,136.28,136.22,16.0828]
[1718891322013,45.26130229,136.36,136.22,16.0828]
[1718891322014,18.3419,136.3,136.22,16.0828]
[1718891322211,7.3385,136.27,136.22,23.4235]
[1718891322411,7.64549875,136.36,136.23,6.2867]
[1718891322631,31.71,136.39,136.24,65.0]
[1718891322937,31.71,136.39,136.25,18.3484]
[1718891323235,31.71,136.39,136.24,20.0]
[1718891323412,0.9777691,136.38,136.26,7.3387]
[1718891323602,0.9777691,136.38,136.22,16.0828]
[1718891323805,31.71,136.43,136.31,7.3358]
[1718891323806,7.3338,136.36,136.31,7.3358]
[1718891324007,31.71,136.43,136.27,22.5296]
[1718891324008,7.334,136.35,136.3,7.3365]
[1718891324206,31.71,136.43,136.29,7.3372]
[1718891324207,7.3347,136.34,136.29,7.3372]
[1718891324634,7.3341,136.35,136.3,7.3366]
[1718891324943,7.3336,136.36,136.31,7.3361]
[1718891325234,332.86388696,136.49,136.32,22.06]
[1718891325235,18.3188,136.48,136.32,22.06]
[1718891325409,7.3287,136.45,136.4,7.3312]
[1718891325609,7.3282,136.46,136.41,7.3304]
[1718891325938,15.6528,136.45,136.28,6.607]
[1718891326119,31.71,136.39,136.28,6.607]
[1718891326636,33.32608867,136.43,136.28,6.607]
[1718891327137,18.3298,136.39,136.31,7.3361]
[1718891327343,18.3271,136.41,136.3,22.06]
[1718891327547,7.3315,136.4,136.35,7.3338]
[1718891327912,31.71,136.43,136.32,40.3989]
[1718891328155,18.3204,136.46,136.34,18.3365]
[1718891328338,18.3204,136.46,136.37,7.3326]
[1718891328339,7.3303,136.42,136.37,7.3326]
[1718891329632,7.3313,136.4,136.35,7.3338]
[1718891330042,31.71,136.45,136.24,39.380985]
[1718891330250,65.0,136.44,136.29,42.06]
[1718891330450,65.0,136.44,136.35,7.3338]
[1718891330630,7.3315,136.4,136.35,7.3338]
[1718891330947,65.0,136.44,136.31,18.3393]
[1718891331155,7.3312,136.41,136.36,7.3331]
[1718891331339,7.3303,136.42,136.35,18.3347]
[1718891331741,7.3303,136.42,136.37,7.3324]
[1718891332042,7.3299,136.43,136.38,7.3323]
[1718891332245,7.3303,136.42,136.37,7.3327]
[1718891334366,7.3309,136.41,136.36,7.3334]
[1718891335944,7.3304,136.42,136.37,7.3327]
[1718891336244,7.3304,136.42,136.34,18.3362]
[1718891336245,7.33,136.43,136.38,7.3323]
[1718891336437,37.43084591,136.5,136.37,6.5687]
[1718891336438,7.3294,136.44,136.37,6.5687]
[1718891336838,7.3294,136.44,136.39,7.3315]
[1718891337054,7.3294,136.44,136.4,7.3313]
[1718891337252,7.3294,136.44,136.39,7.3318]
[1718891337736,7.3298,136.43,136.39,7.3318]
[1718891337940,7.3298,136.43,136.38,7.3322]
[1718891338355,7.3303,136.42,136.37,13.9014]
[1718891338540,37.43084591,136.5,136.37,13.9014]
[1718891338541,37.43084591,136.5,136.38,7.3324]
[1718891338741,7.3298,136.43,136.39,7.3318]
[1718891338942,7.331,136.41,136.37,6.5687]
[1718891339155,7.3325,136.38,136.33,6.3112]
[1718891339336,18.3269,136.42,136.33,6.3112]
[1718891339541,45.0,136.41,136.33,6.3112]
[1718891339742,7.3324,136.39,136.34,7.3343]
[1718891340057,7.3324,136.39,136.35,7.334]
[1718891340255,31.71,136.45,136.37,7.3326]
[1718891340466,20.0,136.44,136.33,28.3712]
[1718891340636,7.3314,136.4,136.33,6.3112]
[1718891340835,7.332,136.39,136.35,7.3337]
[1718891341154,20.0,136.44,136.33,13.6459]
[1718891341456,7.3338,136.36,136.33,6.3112]
[1718891341958,7.3326,136.38,136.33,13.6463]
[1718891342150,7.3326,136.38,136.33,13.6461]
[1718891342357,7.3331,136.37,136.33,6.3112]
[1718891342557,7.3331,136.37,136.33,13.6463]
[1718891342738,45.0,136.42,136.33,6.3112]
[1718891342940,7.3322,136.39,136.34,7.3344]
[1718891343154,7.3322,136.39,136.33,6.3112]
[1718891343350,7.3322,136.39,136.34,7.3345]
[1718891343551,7.3332,136.37,136.33,6.3112]
[1718891343953,7.3332,136.37,136.33,7.3349]
[1718891344153,7.3326,136.38,136.33,7.3349]
[1718891344438,7.3331,136.37,136.32,7.3355]
[1718891344857,45.0,136.42,136.31,15.2183]
[1718891344858,18.3314,136.38,136.31,15.2183]
[1718891345060,45.0,136.37,136.31,15.2183]
[1718891345264,45.0,136.37,136.27,15.9785]
[1718891345448,7.3368,136.3,136.25,13.5482]
[1718891345757,7.3381,136.28,136.23,23.3186]
[1718891345963,7.3384,136.27,136.23,23.3186]
[1718891346272,31.71,136.34,136.21,6.209]
[1718891346444,31.71,136.34,136.22,7.341]
[1718891346445,7.3386,136.27,136.22,7.341]
[1718891347047,7.338,136.28,136.23,7.34]
[1718891347242,73.77,136.36,136.21,6.209]
[1718891347243,73.77,136.36,136.22,18.3515]
[1718891347448,73.77,136.36,136.21,6.209]
[1718891347449,67.06,136.35,136.21,6.209]
[1718891347664,7.3398,136.25,136.21,6.209]
[1718891347860,7.3388,136.27,136.21,6.209]
[1718891348052,18.342,136.3,136.21,13.5503]
[1718891348238,7.34,136.24,136.18,15.9785]
[1718891348445,7.341,136.23,136.18,23.3213]
[1718891348643,31.71,136.28,136.17,6.44]
[1718891348843,7.3415,136.22,136.17,13.7836]
[1718891349466,51.71,136.28,136.17,6.44]
[1718891349667,7.3409,136.23,136.17,6.44]
[1718891349965,18.3473,136.26,136.17,6.44]
[1718891350160,7.3416,136.21,136.17,13.7834]
[1718891350354,7.3413,136.22,136.17,13.7834]
[1718891350871,7.3391,136.26,136.21,7.3415]
[1718891351040,20.0,136.28,136.17,46.8592]
[1718891351041,7.3395,136.25,136.2,7.3419]
[1718891351240,20.0,136.28,136.17,6.44]
[1718891351445,45.0,136.27,136.17,6.44]
[1718891351641,31.71,136.31,136.21,7.3411]
[1718891351848,38.3423,136.3,136.21,7.3415]
[1718891352058,7.3381,136.28,136.23,7.3401]
[1718891352346,7.3378,136.28,136.2,18.3552]
[1718891352546,7.3384,136.27,136.2,18.3552]
[1718891352748,29.70089355,136.33,136.17,6.44]
[1718891352946,7.3397,136.25,136.2,7.3419]
[1718891353246,7.3401,136.24,136.19,7.3425]
[1718891353465,7.3406,136.23,136.18,27.3431]
[1718891354086,18.3503,136.24,136.17,6.44]
[1718891354396,7.3414,136.22,136.17,13.7837]
[1718891354567,7.64089355,136.33,136.19,18.3562]